bitfinex-derivatives/quotes_ETHF0:USTF0_20251225
["timestamp","ask_amount","ask_price","bid_price","bid_amount"]
[1766703557887,0.00403912,2924.0,2921.9,5.18606128]
[1766703558076,0.00403912,2924.0,2922.2,3.87759478]
[1766703558281,0.00403912,2924.0,2922.5,0.1712]
[1766703558891,0.00403912,2924.0,2923.0,0.00512758]
[1766703559092,0.00403912,2924.0,2923.0,0.00896409]
[1766703560294,42.2795065,2925.4,2923.0,0.00896409]
[1766703560490,5.963,2925.3,2923.0,0.00896409]
[1766703561194,5.96729292,2925.3,2923.0,0.18013409]
[1766703561786,6.395,2925.2,2923.0,0.18013409]
[1766703562092,6.395,2925.2,2923.1,0.17117]
[1766703562494,0.17104,2925.2,2923.1,0.17117]
[1766703563084,4.47404,2925.2,2923.1,0.17117]
[1766703563285,3.426,2925.1,2923.1,0.17117]
[1766703563484,0.17104,2925.2,2923.1,0.17117]
[1766703563693,0.17104,2925.2,2923.0,0.00896409]
[1766703563991,0.17104,2925.2,2923.3,0.17115]
[1766703564183,0.17104,2925.2,2923.4,0.17115]
[1766703567597,1.3084665,2925.2,2923.0,0.00896409]
[1766703567799,0.1711,2924.3,2923.0,0.00896409]
[1766703567997,0.17111,2924.0,2921.5,1.3084665]
[1766703568196,1.3084665,2923.7,2921.4,1.49861294]
[1766703568498,0.17116,2923.2,2921.0,0.17129]
[1766703568703,7.1,2923.1,2920.5,1.51477644]
[1766703568891,3.5972,2922.6,2920.5,1.51477644]
[1766703569207,0.00512757,2921.8,2920.5,0.00441181]
[1766703569496,3.426,2920.8,2917.9,0.27411063]
[1766703569697,3.426,2920.6,2917.8,0.17147]
[1766703569895,3.426,2920.6,2918.7,0.17142]
[1766703570098,0.2224,2920.5,2919.4,0.00513672]
[1766703570298,1.3084665,2922.4,2919.4,0.00513672]
[1766703570597,40.8,2922.3,2919.4,0.0094224]
[1766703571201,0.00513672,2921.1,2919.4,0.0094224]
[1766703571788,0.00513672,2921.1,2919.6,1.3084665]
[1766703571998,0.00513672,2921.1,2919.7,5.529]
[1766703572198,0.00513672,2921.1,2919.7,9.27663706]
[1766703573496,3.672e-05,2921.1,2919.7,9.27663706]
[1766703573697,3.672e-05,2921.1,2919.7,9.44799706]
[1766703574297,3.672e-05,2921.1,2919.8,0.17136]
[1766703574701,3.672e-05,2921.1,2919.9,3.87396946]
[1766703575002,3.672e-05,2921.1,2920.0,5.531]
[1766703575201,3.672e-05,2921.1,2919.9,3.87396946]
[1766703575401,3.672e-05,2921.1,2920.0,5.531]
[1766703577093,0.00239908,2922.4,2920.0,5.531]
[1766703577094,0.00239908,2922.4,2920.1,1.3084665]
[1766703577298,0.00239908,2922.4,2920.6,1.3084665]
[1766703577499,0.00239908,2922.4,2920.8,0.1713]
[1766703578106,0.00239908,2922.4,2921.3,0.00513672]
[1766703583603,0.17115,2923.4,2921.4,3.69534364]
[1766703584004,0.17115,2923.4,2921.3,0.17640672]
[1766703584607,0.17441137,2923.4,2921.3,0.17640672]
[1766703585009,0.17441137,2923.4,2921.3,0.00513672]
[1766703585010,0.17118,2922.9,2921.3,0.00513672]
[1766703585211,0.17119,2922.8,2921.3,0.00513672]
[1766703585414,0.17119,2922.8,2920.8,0.1713]
[1766703586313,0.1712,2922.6,2920.1,0.17134]
[1766703586510,0.00513672,2921.6,2920.1,0.17134]
[1766703586722,0.00513672,2921.6,2920.2,0.17133]
[1766703587012,0.00513672,2921.6,2920.4,0.17132]
[1766703588416,0.00513672,2921.6,2920.7,0.00513672]
[1766703593013,3.426,2922.6,2920.7,0.00513672]
[1766703594011,0.00513672,2921.9,2920.7,0.00513672]
[1766703596719,0.00513672,2921.9,2920.7,0.17643672]
[1766703598015,0.00513672,2921.9,2920.7,0.00513672]
[1766703600619,3.426,2923.7,2921.4,0.17127]
[1766703600818,0.17114,2923.6,2920.9,3.05754907]
[1766703601019,4.7344665,2923.3,2921.4,0.17126]
[1766703601323,4.7344665,2923.3,2921.0,3.96018525]
[1766703601525,0.00513672,2922.4,2920.8,0.1713]
[1766703601736,1.3084665,2922.3,2920.7,0.00513672]
[1766703602028,3.426,2922.2,2920.7,3.672e-05]
[1766703602212,3.59722,2922.2,2920.7,3.672e-05]
[1766703603025,3.426,2922.1,2920.7,3.672e-05]
[1766703605122,3.59723,2922.1,2920.7,3.672e-05]
[1766703605323,3.426,2921.9,2920.7,3.672e-05]
[1766703605717,3.426,2921.9,2919.7,0.17136]
[1766703605718,0.17124,2921.8,2919.7,0.17136]
[1766703605918,0.17125,2921.7,2919.4,0.00428568]
[1766703606315,0.17125,2921.6,2919.4,0.17566568]
[1766703606517,3.426,2920.9,2919.4,0.00428568]
[1766703606717,0.00513672,2920.4,2918.7,0.17142]
[1766703606919,0.00513672,2920.4,2917.9,1.57843392]
[1766703607124,0.00513672,2920.4,2918.4,1.3084665]
[1766703607426,0.00513672,2920.4,2919.3,0.17139]
[1766703607615,0.00513672,2920.4,2919.3,0.17394301]
[1766703607921,1.3084665,2922.4,2919.6,0.17650672]
[1766703608219,6.369,2922.3,2919.6,0.17650672]
[1766703608421,40.8,2922.2,2919.6,0.17650672]
[1766703608810,0.00513672,2921.2,2919.6,0.17650672]
[1766703609014,0.00944738,2921.2,2919.6,0.00513672]
[1766703615915,0.328,2921.1,2919.6,0.00513672]
[1766703618129,0.328,2921.1,2919.7,3.79915288]
[1766703619327,0.328,2921.1,2919.7,3.97051288]
[1766703619832,0.00944738,2921.2,2919.7,3.97051288]
[1766703620034,6.363,2922.2,2919.7,3.97051288]
[1766703620428,6.363,2922.2,2919.8,3.05754907]
[1766703620829,6.363,2922.2,2919.9,3.7326219]
[1766703621030,0.00513672,2921.3,2919.9,3.7326219]
[1766703621529,0.00513672,2921.3,2919.9,6.79017097]
[1766703621730,0.00513672,2921.3,2919.9,3.7326219]
[1766703621927,0.00513672,2921.3,2919.8,6.69641109]
[1766703622126,0.00513672,2921.3,2919.8,3.05754907]
[1766703622334,0.00513672,2921.3,2919.6,0.00513672]
[1766703622734,0.00513672,2921.3,2919.7,3.8003942]
[1766703622938,0.0142,2921.2,2919.6,0.00513672]
[1766703624244,0.18548,2921.2,2919.6,0.00513672]
[1766703624733,0.17128,2921.1,2919.6,0.00513672]
[1766703624939,0.0142,2921.2,2919.6,0.00513672]
[1766703625140,3.59729,2921.0,2919.3,0.00255301]
[1766703625433,3.426,2921.0,2919.3,0.00255301]
[1766703625643,0.1713,2920.8,2918.7,0.17142]
[1766703626131,0.1713,2920.8,2919.5,0.00513672]
[1766703626532,0.1713,2920.8,2919.5,0.00872428]
[1766703626733,0.17131,2920.7,2918.2,3.05754907]
[1766703626935,0.17131,2920.6,2918.2,3.05754907]
[1766703627134,0.17131,2920.6,2918.2,3.70981043]
[1766703627839,0.00513672,2919.7,2919.1,0.00513672]
[1766703628029,0.00868629,2919.7,2919.1,0.00513672]
[1766703630333,0.00868629,2919.7,2918.2,0.00303845]
[1766703631533,0.18005629,2919.7,2918.2,0.00303845]
[1766703632337,0.18005629,2919.7,2918.7,0.00513672]
[1766703632533,0.1714,2919.1,2916.9,0.32774359]
[1766703632833,0.1714,2919.1,2917.1,0.17152]
[1766703633033,0.17141,2918.9,2917.0,3.8617684]
[1766703633234,0.17141,2918.9,2916.9,0.15621359]
[1766703633639,0.00513672,2918.2,2916.9,0.15893755]
[1766703645555,0.00513672,2918.2,2917.2,0.17151]
[1766703646248,3.426,2919.1,2917.3,0.1715]
[1766703646556,3.42954957,2919.7,2917.4,0.1715]
[1766703646854,3.42954957,2919.7,2917.6,0.17148]
[1766703647456,0.00513672,2918.9,2918.4,0.00513672]
[1766703648850,0.34763672,2918.9,2918.4,0.00513672]
[1766703652756,3.42954957,2919.7,2918.4,0.00513672]
[1766703653353,3.42954957,2919.7,2917.0,3.78182201]
[1766703653752,0.00354957,2919.7,2917.0,3.78182201]
[1766703654452,0.00513672,2918.6,2918.1,0.00513672]
[1766703658462,0.00513672,2918.6,2917.0,3.61030201]
[1766703658761,0.17144,2918.5,2916.9,0.15893755]
[1766703660950,3.59744,2918.5,2916.9,0.15893755]
[1766703663368,0.17148,2917.8,2916.5,0.16092633]
[1766703663568,0.17148,2917.8,2916.5,2.633e-05]
[1766703664267,0.17148,2917.8,2916.5,0.00313281]
[1766703664456,0.17148,2917.8,2915.2,0.15858577]
[1766703664457,3.426,2918.3,2915.2,0.15858577]
[1766703664656,0.00513672,2917.0,2915.4,0.17162]
[1766703664858,0.00513672,2917.0,2915.5,3.94391977]
[1766703665163,0.00513672,2917.0,2915.5,0.17161]
[1766703665563,0.00801495,2917.0,2915.5,0.17591952]
[1766703666065,0.00801495,2917.0,2915.5,0.00430952]
[1766703667361,0.00801495,2917.0,2915.6,3.86763643]
[1766703667567,3.426,2918.6,2916.0,0.17158]
[1766703667863,3.426,2918.6,2916.1,3.83365567]
[1766703668065,3.59743,2918.6,2916.1,3.83365567]
[1766703668260,0.17143,2918.6,2916.1,4.00523567]
[1766703668461,0.00513672,2917.6,2917.1,0.00513672]
[1766703668657,0.1754499,2918.6,2917.1,0.00513672]
[1766703669663,0.00513672,2918.1,2917.1,0.00513672]
[1766703670952,0.00513672,2918.1,2916.3,0.17157]
[1766703670953,0.00513672,2918.1,2915.5,0.00430952]
[1766703671154,0.17659672,2918.1,2915.7,0.1716]
[1766703671662,0.17659672,2918.1,2915.9,0.17159]
[1766703672065,0.17659672,2918.1,2916.7,0.00513672]
[1766703673870,0.00513672,2918.1,2916.7,0.00513672]
[1766703678865,0.17149,2917.6,2915.5,5.48930952]
[1766703679266,0.1715,2917.5,2915.5,0.00430952]
[1766703679673,0.1715,2917.4,2915.5,0.00430952]
[1766703680978,0.0145,2917.3,2915.5,0.00430952]
[1766703694384,0.17152,2917.1,2915.5,0.00430952]
[1766703694676,0.00513672,2916.6,2915.5,0.00430952]
[1766703695674,0.17156,2916.4,2914.3,3.05754907]
[1766703695877,3.426,2916.2,2914.5,0.003]
[1766703696078,3.59757,2916.2,2914.5,0.003]
[1766703696274,3.426,2915.8,2914.5,0.003]
[1766703696679,3.42862568,2915.8,2914.5,0.00732341]
[1766703697388,0.00262568,2915.8,2914.5,0.00732341]
[1766703698584,0.00262568,2915.8,2914.6,3.62663969]
[1766703698782,0.00262568,2915.8,2914.6,3.79829969]
[1766703699186,6.338,2917.0,2914.8,0.17165]
[1766703699394,0.17151,2917.3,2914.6,3.62663969]
[1766703699594,0.17151,2917.3,2914.5,0.00732341]
[1766703699595,0.17151,2917.3,2915.1,0.17163]
[1766703699897,40.8,2918.4,2915.5,0.17161]
[1766703699898,1.35351028,2917.9,2915.5,0.17161]
[1766703700099,0.00257616,2916.6,2915.9,0.17159]
[1766703700293,3.426,2918.3,2916.0,0.17158]
[1766703700493,3.426,2918.3,2916.0,3.92294293]
[1766703700991,0.00513672,2917.4,2916.9,0.00513672]
[1766703701191,0.00520398,2917.4,2916.9,0.0084692]
[1766703701990,0.00520398,2917.4,2916.1,3.75703812]
[1766703702191,0.00520398,2917.4,2915.3,3.22916907]
[1766703702393,0.00520398,2917.4,2915.3,0.17162]
[1766703702692,0.00520398,2917.4,2915.4,3.60498625]
[1766703702897,0.00520398,2917.4,2915.3,0.17162]
[1766703703095,0.00520398,2917.4,2916.1,0.00243699]
[1766703703292,3.426,2917.3,2915.3,0.00342154]
[1766703708803,0.17152,2917.1,2915.3,0.00342154]
[1766703710710,9.779,2917.0,2915.3,0.00342154]
[1766703713412,3.426,2916.9,2915.3,0.00342154]
[1766703716614,0.0146,2916.8,2915.3,0.00342154]
[1766703720513,0.0146,2916.8,2915.7,0.1716]
[1766703723324,0.0146,2916.8,2915.4,3.66353523]
[1766703723817,0.0146,2916.8,2915.3,0.00342154]
[1766703725121,0.0146,2916.8,2914.5,0.003]
[1766703725122,3.426,2916.6,2914.5,0.003]
[1766703725311,0.00513672,2915.8,2914.5,0.003]
[1766703726123,0.00513672,2915.8,2914.6,0.17166]
[1766703728519,0.00513672,2915.8,2914.5,0.00588106]
[1766703736439,0.0147,2915.7,2914.5,0.00588106]
[1766703741333,0.0147,2915.7,2913.8,3.05754907]
[1766703741534,0.0147,2915.7,2913.5,3.22927907]
[1766703741722,0.0147,2915.7,2913.5,0.17173]
[1766703741928,3.4407,2915.7,2913.5,0.17173]
[1766703742122,3.6123,2915.7,2913.5,0.17173]
[1766703742331,3.6123,2915.7,2913.6,1.43421483]
[1766703742531,3.4407,2915.7,2913.7,0.17172]
[1766703742727,3.4407,2915.7,2913.7,4.00156132]
[1766703742928,0.0147,2915.7,2913.7,4.00156132]
[1766703743438,0.0147,2915.7,2913.7,7.05911039]
[1766703744033,0.0147,2915.7,2913.8,3.05754907]
[1766703745236,0.0147,2915.7,2913.9,3.86347661]
[1766703745422,0.0147,2915.7,2914.0,0.1717]
[1766703745831,0.0147,2915.7,2914.1,0.17169]
[1766703746338,0.0147,2915.7,2914.3,0.17168]
[1766703746937,0.0147,2915.7,2914.4,0.17167]
[1766703749136,0.0147,2915.7,2914.5,0.17167]
[1766703749841,0.0147,2915.7,2914.6,0.17166]
[1766703755147,0.0147,2915.7,2914.2,3.8910142]
[1766703758951,0.0147,2915.7,2914.3,5.443]
[1766703759550,0.00513672,2915.8,2914.3,5.443]
[1766703762152,0.0148,2915.7,2914.3,5.443]
[1766703762755,0.0148,2915.7,2913.7,3.05754907]
[1766703762949,0.0148,2915.7,2913.8,5.446]
[1766703763350,0.0148,2915.7,2914.0,3.05754907]
[1766703763851,0.0148,2915.7,2913.6,0.00258739]
[1766703763852,3.4408,2915.7,2913.6,0.00258739]
[1766703764152,0.17164,2915.0,2913.6,0.00258739]
[1766703764449,0.00289743,2915.0,2913.6,0.00258739]
[1766703764749,0.00289743,2915.0,2913.7,3.7723825]
[1766703764950,3.426,2915.6,2913.7,3.7723825]
[1766703765156,0.0148,2915.7,2913.7,3.7723825]
[1766703765957,0.01875182,2915.7,2913.7,3.7723825]
[1766703766162,0.01875182,2915.7,2914.2,0.17169]
[1766703766849,0.01875182,2915.7,2914.4,0.17168]
[1766703767043,0.01875182,2915.7,2914.1,5.445]
[1766703767445,0.01875182,2915.7,2914.2,3.92232328]
[1766703768454,0.01875182,2915.7,2914.3,0.17168]
[1766703771755,0.01875182,2915.7,2913.9,4.27459483]
[1766703771756,0.01875182,2915.7,2914.4,5.45]
[1766703772549,0.01875182,2915.7,2913.7,5.451]
[1766703773056,0.01875182,2915.7,2914.1,0.17169]
[1766703773252,0.01875182,2915.7,2913.8,3.61225159]
[1766703773452,0.01875182,2915.7,2913.7,5.45]
[1766703775751,0.17163,2915.3,2913.6,0.00258739]
[1766703776060,3.426,2915.6,2913.6,0.00258739]
[1766703776855,0.01875182,2915.7,2913.6,0.00258739]
[1766703777562,0.01875182,2915.7,2913.7,0.17171]
[1766703778959,0.01875182,2915.7,2913.6,0.00258739]
[1766703779166,0.17161,2915.5,2913.6,0.00258739]
[1766703780763,0.17162,2915.4,2913.6,0.00258739]
[1766703780968,0.17164,2915.1,2913.6,0.00258739]
[1766703781469,3.61635182,2915.7,2913.6,0.00258739]
[1766703781764,3.426,2915.6,2913.7,0.17171]
[1766703782160,3.426,2915.6,2913.8,0.17171]
[1766703782559,0.01875182,2915.7,2913.8,5.372]
[1766703782763,0.01875182,2915.7,2914.5,0.17167]
[1766703782966,0.00513672,2915.8,2914.7,0.17166]
[1766703783161,0.17149,2917.6,2914.9,0.17165]
[1766703783465,1.114,2917.7,2914.9,0.17165]
[1766703783663,0.17153,2917.0,2914.8,5.445]
[1766703784065,0.00514562,2916.2,2915.6,0.00514562]
[1766703784469,4.562e-05,2916.2,2915.6,0.00514562]
[1766703791176,0.17072333,2917.4,2915.6,0.00514562]
[1766703791378,0.17147,2917.9,2915.6,0.00514562]
[1766703791775,4.76760017,2918.4,2915.7,3.81151709]
[1766703792076,6.53544191,2918.6,2915.7,3.63991709]
[1766703792378,0.00514562,2917.4,2915.7,3.64421386]
[1766703793485,0.00514562,2917.4,2916.0,0.17158]
[1766703793689,0.00514562,2917.4,2916.1,5.438]
[1766703793880,0.00514562,2917.4,2916.1,9.08471756]
[1766703795587,6.36810573,2918.6,2916.5,0.17155]
[1766703796591,0.00514562,2917.8,2917.3,0.00514562]
[1766703797389,0.00514562,2917.8,2916.1,9.08471756]
[1766703798086,0.00514562,2917.8,2916.2,0.17157]
[1766703798479,0.00514562,2917.8,2916.7,0.00514562]
[1766703800496,0.00409382,2918.6,2917.2,0.17151]
[1766703800686,0.00409382,2918.6,2917.3,5.434]
[1766703800993,0.00409382,2918.6,2916.7,0.00514562]
[1766703801190,0.00409382,2918.6,2916.8,5.433]
[1766703801380,0.00409382,2918.6,2916.9,5.433]
[1766703801588,0.00514562,2918.0,2916.9,5.433]
[1766703802389,0.00409382,2918.6,2916.9,5.433]
[1766703803589,0.00514562,2918.0,2916.9,5.433]
[1766703806493,0.00409382,2918.6,2916.9,5.433]
[1766703806694,0.00409382,2918.6,2917.0,4.01710901]
[1766703807194,0.00409382,2918.6,2917.1,0.17152]
[1766703807791,1e-08,2918.6,2917.5,0.17149]
[1766703807998,3.59737,2919.7,2917.6,0.17149]
[1766703808190,3.59737,2919.7,2917.6,5.60149]
[1766703808702,0.00340966,2918.9,2918.4,0.00514562]
[1766703809199,0.00786782,2918.9,2918.4,0.00834044]
[1766703809395,3.426,2919.8,2918.4,0.00834044]
[1766703809794,3.426,2920.0,2918.4,0.00834044]
[1766703810397,0.00366524,2920.0,2918.4,0.00834044]
[1766703813401,1.18235053,2919.9,2918.4,0.00834044]
[1766703814697,4.60835053,2919.9,2918.4,0.00834044]
[1766703815096,0.17137,2919.7,2918.4,0.00834044]
[1766703816101,4.60835053,2919.9,2918.4,0.00834044]
[1766703816696,0.00366524,2920.0,2918.4,0.00834044]
[1766703818102,3.426,2919.8,2918.4,0.00834044]
[1766703821201,0.00366524,2920.0,2918.4,0.00834044]
[1766703822702,0.00366524,2920.0,2918.4,0.17978044]
[1766703824006,0.00366524,2920.0,2918.5,3.82321191]
[1766703826910,0.00366524,2920.0,2918.6,0.17143]
[1766703827410,0.00366524,2920.0,2918.7,3.67090953]
[1766703828509,1.18235053,2921.1,2919.0,0.17141]
[1766703828905,1.18235053,2921.1,2918.6,6.376]
[1766703829104,0.1713,2920.9,2918.9,5.251]
[1766703829306,0.1713,2920.9,2918.9,8.9644325]
[1766703829510,0.17512018,2920.9,2918.9,5.251]
[1766703829909,0.00382018,2920.9,2918.9,5.42241]
[1766703830909,0.00382018,2920.9,2919.0,3.62777314]
[1766703834113,0.00382018,2920.9,2918.4,0.00834044]
[1766703834114,4.60835053,2920.6,2918.5,5.58543]
[1766703834508,4.60835053,2920.6,2918.5,9.5182422]
[1766703834707,4.60835053,2920.6,2918.7,0.17142]
[1766703834906,4.77966053,2920.6,2918.7,0.17142]
[1766703835110,1.18235053,2920.1,2918.4,0.00834044]
[1766703835302,3.426,2920.1,2918.4,0.00834044]
[1766703836302,0.17133,2920.3,2918.4,0.00834044]
[1766703840918,3.426,2920.5,2918.4,0.17978044]
[1766703841113,1.18235053,2920.1,2918.4,0.00834044]
[1766703841422,1.18235053,2919.6,2918.4,0.00834044]
[1766703841621,0.17136,2919.9,2918.4,0.00834044]
[1766703845721,3.426,2919.5,2917.8,0.17148]
[1766703846821,0.00514562,2918.9,2918.4,0.00514562]
[1766703847824,9.685,2920.0,2918.4,0.00514562]
[1766703848418,1.18235053,2920.6,2918.4,0.00514562]
[1766703848624,3.426,2920.5,2918.4,0.00514562]
[1766703848820,3.426,2920.5,2918.5,9.29547849]
[1766703849125,3.426,2920.5,2918.5,12.37465694]
[1766703850022,9.45382018,2920.9,2918.5,12.37465694]
[1766703850218,0.00382018,2920.9,2918.8,3.07917845]
[1766703850420,0.00382018,2920.9,2919.0,3.25057845]
[1766703850618,0.00382018,2920.9,2919.2,3.07917845]
[1766703851123,0.00382018,2920.9,2919.3,9.15539305]
[1766703851327,0.00382018,2920.9,2919.3,5.407]
[1766703853327,0.00382018,2920.9,2919.4,3.91129095]
[1766703855028,0.00382018,2920.9,2919.5,5.408]
[1766703855224,0.00382018,2920.9,2919.9,0.00513672]
[1766703855429,0.00382018,2920.9,2919.9,0.00809468]
[1766703863744,0.1713,2920.8,2918.8,3.07917845]
[1766703863931,0.1713,2920.8,2918.6,0.17143]
[1766703864635,0.00510706,2920.0,2919.4,0.00513672]
[1766703865847,0.1713,2920.8,2919.4,0.00513672]
[1766703868437,0.00382018,2920.9,2919.4,0.00513672]
[1766703878248,0.00382018,2920.9,2919.6,2.45979094]
[1766703878447,0.00382018,2920.9,2919.7,2.45979094]
[1766703879654,0.00382018,2920.9,2919.8,2.45979094]
[1766703879948,0.00382018,2920.9,2919.9,2.45979094]
[1766703887564,0.00382018,2920.9,2920.0,2.45979094]
[1766703887747,0.00382018,2920.9,2920.2,2.45979094]
[1766703888654,0.17125,2921.7,2920.2,2.45979094]
[1766703889364,0.17122,2922.3,2920.4,2.45979094]
[1766703889658,0.17122,2922.2,2921.1,0.00513672]
[1766703889864,0.00369008,2922.3,2920.5,2.45979094]
[1766703890056,0.00369008,2922.3,2920.1,3.25051845]
[1766703890057,0.17124,2921.9,2920.4,2.45979094]
[1766703890860,0.00513672,2921.4,2920.9,0.00513672]
[1766703891065,0.00513672,2921.4,2920.4,2.4625082]
[1766703891560,0.00513672,2921.4,2920.4,0.00271726]
[1766703891966,0.00513672,2921.4,2920.6,0.00513672]
[1766703896759,0.00513672,2921.4,2920.6,2.46492766]
[1766703896960,0.00513672,2921.4,2920.7,2.45979094]
[1766703897358,0.17122,2922.2,2920.7,2.45979094]
[1766703898566,0.00513672,2921.7,2920.7,2.45979094]
[1766703899471,0.00513672,2921.7,2920.6,2.46492766]
[1766703899773,0.00513672,2921.7,2920.6,0.00513672]
[1766703906070,0.00513672,2921.7,2920.6,2.46492766]
[1766703907070,0.00513672,2921.7,2920.7,2.45979094]
[1766703912277,0.00513672,2921.7,2920.8,2.45979094]
[1766703912677,0.00513672,2921.7,2920.7,2.45979094]
[1766703913280,0.00513672,2921.7,2920.8,2.45979094]
[1766703916278,0.00513672,2921.7,2920.4,0.00271726]
[1766703917583,0.17126,2921.6,2920.4,0.00271726]
[1766703918580,0.00513672,2921.7,2920.7,0.00513672]
[1766703920377,0.00369008,2922.3,2920.7,0.00513672]
[1766703921279,0.17115,2923.4,2921.0,0.17129]
[1766703921482,6.189,2923.5,2921.0,0.17129]
[1766703921882,6.189,2923.5,2921.1,3.64158924]
[1766703922082,1.17836319,2923.3,2921.1,3.64158924]
[1766703922278,0.00513672,2922.3,2921.1,3.64158924]
[1766703922783,0.00513672,2922.3,2921.0,5.375]
[1766703923086,0.00513672,2922.3,2920.9,5.376]
[1766703923290,0.00513672,2922.3,2920.7,3.08431517]
[1766703923586,0.00513672,2922.3,2920.7,0.00513672]
[1766703925188,0.00513672,2922.3,2920.7,0.17643672]
[1766703925382,0.00513672,2922.3,2920.8,3.78628192]
[1766703926679,0.00513672,2922.3,2920.7,3.25561517]
[1766703927079,0.00513672,2922.3,2920.8,0.1713]
[1766703929389,0.00513672,2922.3,2920.9,0.17129]
[1766703929587,0.00513672,2922.3,2920.9,3.8409301]
[1766703929989,3.672e-05,2922.3,2920.9,0.17129]
[1766703930190,3.672e-05,2922.3,2921.0,3.6696401]
[1766703930889,3.672e-05,2922.3,2921.0,3.8409301]
[1766703931091,3.672e-05,2922.3,2921.0,6.92010855]
[1766703931388,3.672e-05,2922.3,2921.0,3.25046845]
[1766703931691,3.672e-05,2922.3,2921.2,3.07917845]
[1766703931895,3.672e-05,2922.3,2921.1,6.71663691]
[1766703932195,3.672e-05,2922.3,2920.8,8.45717845]
[1766703932485,3.672e-05,2922.3,2920.8,5.378]
[1766703932886,3.429,2922.1,2920.7,0.00513672]
[1766703936495,1.17836319,2922.2,2920.7,0.00513672]
[1766703936691,4.60736319,2922.2,2920.7,0.00513672]
[1766703937887,0.17123,2922.1,2920.7,0.00513672]
[1766703938388,0.17123,2922.1,2920.7,2.46190481]
[1766703945194,3.672e-05,2922.3,2920.4,0.00271726]
[1766703945195,3.429,2921.6,2920.4,0.00271726]
[1766703945401,3.60026,2921.6,2920.0,3.07917845]
[1766703945602,3.60026,2921.6,2919.9,5.384]
[1766703946199,0.17126,2921.5,2920.5,0.00513672]
[1766703946399,0.17126,2921.5,2919.9,5.384]
[1766703946702,0.17127,2921.4,2919.9,5.384]
[1766703947403,0.17127,2921.4,2920.4,0.00513672]
[1766703947695,0.17127,2921.4,2919.9,5.38775843]
[1766703947897,4.77864319,2921.2,2919.8,1.23107391]
[1766703948100,4.77864319,2921.2,2919.2,4.27459483]
[1766703948101,1.17836319,2920.7,2919.2,7.35377328]
[1766703948295,1.17836319,2920.7,2919.2,5.384]
[1766703948799,0.00513672,2920.2,2919.7,0.00513672]
[1766703948993,0.0085276,2920.2,2919.1,1.25876858]
[1766703949193,0.0085276,2920.2,2918.8,3.07917845]
[1766703949388,1.18689079,2920.2,2918.6,3.07917845]
[1766703949600,1.18689079,2920.2,2918.4,0.17144]
[1766703949601,1.18689079,2920.2,2918.7,5.384]
[1766703949902,1.18689079,2920.2,2919.2,0.00513672]
[1766703950103,1.18689079,2920.2,2919.2,0.00780079]
[1766703952601,0.17134,2920.1,2918.1,3.07917845]
[1766703952805,0.17134,2920.1,2918.1,5.384]
[1766703952995,0.17134,2920.1,2918.1,5.55546]
[1766703953703,0.17134,2920.1,2918.8,0.00513672]
[1766703959907,0.0085276,2920.2,2918.8,0.00513672]
[1766703961808,6.314,2921.5,2918.8,0.00513672]
[1766703961809,0.003,2923.0,2920.2,0.17133]
[1766703962013,0.17417,2923.0,2920.4,2.61546114]
[1766703962215,1.17836319,2922.7,2920.3,3.94084728]
[1766703962412,1.17836319,2921.7,2919.5,2.44414114]
[1766703962713,0.00513672,2920.9,2920.3,0.00513672]
[1766703963112,0.00344981,2921.7,2920.3,0.00513672]
[1766703963512,1.181813,2921.7,2920.3,0.00513672]
[1766703964319,0.00513672,2921.3,2920.3,0.00513672]
[1766703970122,0.00344981,2921.7,2920.3,0.00513672]
[1766703971115,0.00513672,2921.3,2920.3,0.00513672]
[1766703972627,0.00344981,2921.7,2920.3,0.00513672]
[1766703973724,0.00513672,2921.3,2920.3,0.00513672]
[1766703975620,0.00344981,2921.7,2920.4,0.17132]
[1766703975928,7.23318,2922.9,2920.6,0.17131]
[1766703976235,40.8,2922.8,2920.6,0.17131]
[1766703976425,1.17836319,2922.4,2920.6,0.17131]
[1766703977131,3.429,2922.3,2920.6,0.17131]
[1766703984035,0.00412844,2922.4,2920.6,0.17131]
[1766703985331,0.00412844,2922.4,2920.6,2.61545114]
[1766703987135,0.00412844,2922.4,2920.7,2.44414114]
[1766703988237,0.00412844,2922.4,2920.8,2.44414114]
[1766703989238,0.00412844,2922.4,2920.9,2.44414114]
[1766703991343,0.00412844,2922.4,2921.1,2.44414114]
[1766703991844,3.43312844,2922.4,2921.1,2.44414114]
[1766703993544,3.60433844,2922.4,2921.1,2.44414114]
[1766703994341,0.17121,2922.3,2921.1,2.44414114]
[1766703996941,6.187,2922.2,2921.1,2.44414114]
[1766703997250,6.187,2922.2,2921.2,2.44414114]
[1766703997845,9.616,2922.2,2920.7,3.07917845]
[1766703998052,0.17125,2921.6,2920.3,0.00513672]
[1766703998347,6.197,2921.5,2920.3,0.00513672]
[1766704000652,9.626,2921.5,2920.3,0.00513672]
[1766704000853,0.17127,2921.3,2920.0,3.07917845]
[1766704001150,0.17128,2921.2,2919.5,4.27869901]
[1766704001450,3.77278,2921.2,2919.5,3.07846223]
[1766704001852,0.00513672,2920.6,2919.5,3.07846223]
[1766704002048,0.00513672,2920.6,2919.5,0.00410418]
[1766704002251,0.00513672,2920.6,2918.8,3.07435805]
[1766704002550,0.00513672,2920.6,2918.7,11.23579911]
[1766704003043,0.00513672,2920.6,2919.4,0.00513672]
[1766704003244,0.00513672,2920.6,2919.4,0.00935101]
[1766704003442,0.17133,2920.4,2919.4,0.00935101]
[1766704005153,0.17133,2920.4,2918.5,3.07435805]
[1766704005448,0.17133,2920.4,2918.4,0.17144]
[1766704005847,0.17133,2920.3,2918.4,0.17144]
[1766704006245,0.17503535,2920.3,2919.1,0.00513672]
[1766704009456,0.17134,2920.2,2919.1,0.00513672]
[1766704011666,0.17134,2920.1,2918.4,0.00408127]
[1766704012961,0.17134,2920.1,2919.0,0.00513672]
[1766704013161,0.17135,2920.0,2918.4,0.00408127]
[1766704013365,6.237,2919.9,2918.4,0.00408127]
[1766704014060,6.237,2919.9,2918.9,0.00513672]
[1766704016858,6.261,2919.8,2918.9,0.00513672]
[1766704017460,6.266,2919.7,2918.9,0.00513672]
[1766704021460,0.17135,2920.0,2918.9,0.00513672]
[1766704021660,6.294,2919.9,2918.9,0.00513672]
[1766704022470,0.17135,2920.0,2918.9,0.00513672]
[1766704022670,6.302,2919.9,2918.9,0.00513672]
[1766704024558,0.17135,2920.0,2918.9,0.00513672]